bitfinex-derivatives/quotes_ETHF0:USTF0_20250331
["timestamp","ask_amount","ask_price","bid_price","bid_amount"]
[1743443301345,0.00825195,1820.2,1820.1,1.09892]
[1743443302242,24.15722638,1820.7,1820.6,1.09862]
[1743443302243,25.62082638,1820.7,1820.6,1.09862]
[1743443302537,4.6714,1820.7,1820.2,2.74707]
[1743443302740,3.2078,1820.5,1820.4,1.09874]
[1743443303248,4.6714,1820.7,1820.6,1.09862]
[1743443303437,3.2078,1820.7,1820.6,1.09862]
[1743443303741,0.00825195,1820.8,1820.7,1.09856]
[1743443306237,1.49345195,1820.8,1820.7,1.09856]
[1743443306540,0.00825195,1820.8,1820.7,1.09856]
[1743443307338,3.2078,1820.6,1819.9,0.00825195]
[1743443307645,5.8782,1820.5,1820.4,1.09874]
[1743443308145,1.4852,1820.5,1820.2,1.3913]
[1743443308340,3.2078,1820.4,1820.3,1.09876]
[1743443308542,1.4852,1820.5,1820.4,1.09874]
[1743443310145,2.5839,1820.5,1820.2,1.09884]
[1743443310455,3.2078,1820.4,1820.3,1.0988]
[1743443310650,4.381,1820.6,1820.5,1.09868]
[1743443310651,7.5888,1820.6,1820.5,1.09868]
[1743443310838,4.30645,1820.6,1820.2,1.09883]
[1743443311150,4.30665,1820.3,1819.9,0.00825195]
[1743443311348,3.2078,1820.1,1819.9,0.00825195]
[1743443311550,1.3837,1820.0,1819.9,1.10729195]
[1743443312046,4.5915,1820.0,1819.9,0.00825195]
[1743443312247,1.3837,1820.0,1819.9,1.10729195]
[1743443313339,4.5915,1820.0,1819.9,1.10729195]
[1743443314139,1.3837,1820.0,1819.9,1.10729195]
[1743443315046,3.2078,1820.2,1819.9,0.00825195]
[1743443315248,1.3935,1820.1,1820.0,1.09898]
[1743443316751,2.49245,1820.1,1819.9,0.00825195]
[1743443316944,2.49245,1820.1,1819.3,3.2078]
[1743443316945,7.6878,1820.0,1819.3,3.2078]
[1743443317152,3.8935,1820.1,1819.3,3.2078]
[1743443317153,4.5845,1819.9,1819.8,1.0991]
[1743443318045,1.3767,1819.9,1819.8,1.0991]
[1743443318252,3.2078,1820.1,1819.9,1.09904]
[1743443318253,0.00825195,1820.0,1819.9,1.09904]
[1743443319248,1.38495195,1820.0,1819.9,1.09904]
[1743443319941,1.95e-06,1820.0,1819.9,1.09904]
[1743443320146,1.95e-06,1820.0,1819.9,3.25574]
[1743443322048,1.95e-06,1820.0,1819.9,6.46354]
[1743443322950,1.95e-06,1820.0,1819.9,3.25574]
[1743443323151,3.2078,1820.5,1819.9,17.5705]
[1743443323358,1.4004,1820.8,1820.7,1.09856]
[1743443324850,1.4004,1820.8,1820.7,2.54106]
[1743443325048,0.00825195,1820.9,1820.8,1.0985]
[1743443329951,3.21605195,1820.9,1820.8,1.0985]
[1743443330254,1.3936,1821.4,1820.6,2.75470195]
[1743443330255,3.2078,1821.5,1820.6,0.00825195]
[1743443330452,3.2078,1821.5,1821.2,1.09826]
[1743443330453,4.6147,1821.3,1821.2,1.09826]
[1743443330651,7.1147,1821.3,1821.2,1.09826]
[1743443331251,11.5937,1821.3,1821.2,1.09826]
[1743443331649,14.33922,1821.3,1820.7,2.2136]
[1743443331854,3.2078,1820.9,1820.6,0.00825195]
[1743443332058,1.4069,1820.8,1820.7,1.09856]
[1743443332247,4.6147,1820.8,1820.7,1.09856]
[1743443335258,5.7132,1820.8,1820.7,1.09856]
[1743443335864,4.6147,1820.8,1820.7,1.09856]
[1743443336051,4.6147,1820.8,1820.6,0.00825195]
[1743443336254,4.6147,1820.8,1820.7,1.09856]
[1743443336456,7.1351,1820.8,1820.7,1.09856]
[1743443337156,1.09856,1820.7,1820.6,0.00825195]
[1743443337356,2.57456,1820.7,1820.6,0.00825195]
[1743443338058,5.07456,1820.7,1820.6,0.00825195]
[1743443338668,1.476,1820.7,1820.6,1.10687195]
[1743443338864,7.6398,1821.0,1820.6,1.10687195]
[1743443339164,1.0985,1820.8,1820.7,1.09852]
[1743443339360,1.3919,1820.9,1820.8,1.0985]
[1743443339862,1.09828,1821.2,1820.9,2.74611]
[1743443340163,1.3919,1821.2,1821.1,1.09829]
[1743443341065,4.5997,1821.2,1821.1,1.09829]
[1743443341264,4.5997,1821.2,1820.9,1.3999]
[1743443341466,1.3919,1821.2,1821.1,1.09832]
[1743443341973,4.5997,1821.2,1820.6,0.52225367]
[1743443342164,4.30618,1821.0,1820.8,1.09845]
[1743443342358,3.2078,1821.0,1820.9,2.52354]
[1743443342862,1.09838,1821.0,1820.9,1.4251]
[1743443343063,3.2078,1821.0,1820.6,0.00825195]
[1743443343266,3.2078,1821.0,1820.8,1.09848]
[1743443343855,3.2078,1821.0,1820.9,1.09844]
[1743443345666,7.5948,1821.0,1820.6,0.00825195]
[1743443345867,7.5948,1821.0,1820.6,1.40635195]
[1743443346263,7.5948,1821.0,1820.6,0.00825195]
[1743443346464,3.2078,1820.7,1820.6,0.00825195]
[1743443346666,3.2078,1820.7,1820.5,2.8109]
[1743443346667,7.5918,1820.7,1819.9,0.51415023]
[1743443346869,3.2078,1820.1,1819.9,1.4034]
[1743443347061,4.393,1820.0,1819.4,3.2078]
[1743443347368,3.2078,1819.8,1819.5,1.3981]
[1743443347570,4.393,1820.0,1819.5,1.3981]
[1743443347571,4.393,1819.9,1819.5,1.3981]
[1743443347966,4.40125195,1819.9,1819.5,1.40635195]
[1743443348569,0.00825195,1819.9,1819.5,1.40635195]
[1743443348872,0.00825195,1819.9,1819.6,0.6966]
[1743443349063,0.00825195,1819.9,1819.7,1.4203]
[1743443350770,0.00825195,1819.9,1819.8,0.7295]
[1743443353376,3.2078,1820.3,1819.8,6.4373]
[1743443353676,3.2078,1820.3,1819.8,3.9373]
[1743443353869,3.2078,1820.3,1819.9,1.4944]
[1743443354367,1.4761,1820.2,1819.9,1.4944]
[1743443355371,3.2078,1820.1,1819.8,0.7295]
[1743443355568,1.4761,1820.0,1819.6,3.9044]
[1743443355769,1.4761,1820.0,1819.7,1.4944]
[1743443357279,4.374,1820.1,1819.7,1.4944]
[1743443357872,1.3758,1820.0,1819.7,1.4944]
[1743443358372,3.2130724,1820.3,1819.7,1.4944]
[1743443358579,3.2130724,1820.3,1819.8,3.2078]
[1743443358780,1.3758,1820.2,1819.9,2.2349]
[1743443358979,3.2130724,1820.3,1819.9,2.2349]
[1743443359171,4.5888724,1820.3,1819.9,2.2349]
[1743443359375,1.3810724,1820.3,1819.9,2.2349]
[1743443360777,0.0052724,1820.3,1819.9,2.2349]
[1743443361074,5.7202,1820.7,1820.2,3.2078]
[1743443361271,5.7202,1820.7,1820.3,2.09]
[1743443361476,1.3682,1820.7,1820.4,1.3717]
[1743443362277,1.3682,1820.7,1820.4,4.5795]
[1743443362478,7.5538,1821.0,1820.6,3.2078]
[1743443362677,7.5538,1821.0,1820.7,1.4072]
[1743443362678,1.3629,1820.9,1820.7,1.4072]
[1743443362879,3.2078,1821.0,1820.7,1.4072]
[1743443363080,3.2078,1821.0,1820.8,0.7183]
[1743443363282,1.3629,1821.1,1820.9,1.4072]
[1743443363484,55.385,1821.5,1820.9,1.4072]
[1743443363485,58.5928,1821.5,1820.9,1.4072]
[1743443363685,1.3629,1821.4,1821.0,3.2078]
[1743443363989,1.3629,1821.4,1821.1,1.4072]
[1743443364176,24.15722638,1821.6,1821.1,1.4072]
[1743443364379,18.97925719,1821.6,1821.4,3.2078]
[1743443364577,18.97925719,1821.6,1821.5,2.1365]
[1743443365881,1.3629,1821.9,1821.5,2.1365]
[1743443366189,3.902,1822.2,1821.5,2.1365]
[1743443366190,4.367,1822.1,1821.5,2.1365]
[1743443366494,5.7617,1822.1,1821.6,3.21605195]
[1743443366691,5.7617,1822.1,1821.7,1.4863]
[1743443367588,3.2078,1822.0,1821.6,3.21605195]
[1743443367789,1.3947,1821.9,1821.6,3.21605195]
[1743443367990,1.3947,1821.9,1821.7,1.4863]
[1743443368388,4.367,1822.1,1821.7,1.4863]
[1743443368794,1.3853,1822.0,1821.7,1.4863]
[1743443368996,4.5931,1822.0,1821.7,1.4863]
[1743443369894,4.5931,1822.0,1821.6,3.21605195]
[1743443370591,4.5931,1822.0,1821.7,1.09796]
[1743443370993,4.5931,1822.0,1821.8,1.09788]
[1743443371297,4.5931,1822.0,1821.7,1.09794]
[1743443371497,4.3057,1821.8,1821.6,0.00825195]
[1743443371700,1.3853,1821.7,1821.6,0.00825195]
[1743443371894,2.48326,1821.7,1821.6,0.00825195]
[1743443372100,1.3853,1821.7,1821.6,0.00825195]
[1743443372296,1.3853,1821.7,1821.6,1.10627195]
[1743443373488,1.3853,1821.7,1821.6,0.00825195]
[1743443373693,3.8853,1821.7,1821.4,1.09811]
[1743443373895,4.30591,1821.5,1821.3,1.09818]
[1743443374092,5.8369,1821.4,1821.3,1.09818]
[1743443375703,1.5019,1821.4,1821.3,1.09818]
[1743443375903,1.5019,1821.4,1821.3,2.49888]
[1743443376900,0.00825194,1821.5,1821.4,1.09814]
[1743443377095,0.00825194,1821.5,1821.4,6.44844]
[1743443377593,3.9489,1822.2,1822.0,1.09773]
[1743443377800,5.0466,1822.2,1821.9,1.0978]
[1743443377999,3.9489,1822.2,1821.7,2.74488]
[1743443378200,5.0466,1822.2,1821.9,1.09782]
[1743443378400,3.9489,1822.2,1821.7,1.09796]
[1743443378596,3.9489,1822.2,1821.8,2.74475]
[1743443378797,1.3706,1822.1,1822.0,1.09778]
[1743443380305,1.3706,1822.1,1822.0,2.53238]
[1743443381203,3.2078,1822.4,1822.3,1.0976]
[1743443381804,1.4912,1822.5,1822.4,1.09754]
[1743443382005,7.5028,1822.6,1822.5,1.09748]
[1743443382201,7.5028,1822.6,1822.3,2.7439]
[1743443382202,55.351,1822.7,1822.6,1.09742]
[1743443383005,58.5588,1822.7,1822.6,1.09742]
[1743443383202,55.351,1822.7,1822.6,1.09742]
[1743443383407,3.2078,1822.9,1822.8,1.0973]
[1743443383706,3.2078,1822.9,1822.7,1.09732]
[1743443383901,3.2078,1822.9,1822.8,1.0973]
[1743443385396,3.2078,1823.1,1823.0,1.09718]
[1743443386209,58.5458,1823.3,1823.1,1.0971]
[1743443386412,1.09706,1823.2,1823.1,1.0971]
[1743443386607,59.64285,1823.3,1822.9,1.09724]
[1743443386815,3.2078,1823.1,1823.0,1.09718]
[1743443387708,3.2078,1823.3,1823.2,1.09706]
[1743443388007,3.2078,1823.3,1822.9,5.48601]
[1743443388304,7.00707,1823.6,1822.9,1.09724]
[1743443388305,3.2078,1823.0,1822.9,1.09724]
[1743443389105,3.2078,1823.7,1823.2,2.74265]
[1743443389303,2.74153,1824.0,1823.2,2.74265]
[1743443389304,3.2078,1823.5,1823.4,1.09693]
[1743443390204,3.2078,1823.7,1823.6,1.0968]
[1743443390396,3.2078,1823.7,1823.3,2.75071886]
[1743443390602,1.09693,1823.4,1823.3,1.10519886]
[1743443391006,1.09693,1823.4,1823.3,0.00822886]
[1743443391202,3.2078,1823.5,1823.3,0.00822886]
[1743443391407,1.09684,1823.6,1823.3,0.00822886]
[1743443391613,1.09687,1823.5,1823.4,1.0969]
[1743443391803,4.30467,1823.5,1823.3,1.10518886]
[1743443392113,3.2078,1823.5,1823.4,1.09693]
[1743443392711,4.30467,1823.5,1823.4,1.09693]
[1743443392905,3.2078,1823.5,1823.4,1.09693]
[1743443393709,4.30467,1823.5,1823.4,1.09693]
[1743443394107,5.40284,1823.6,1823.5,1.09687]
[1743443394508,3.47088,1823.8,1823.6,1.09676]
[1743443394509,3.2078,1823.8,1823.6,1.09676]
[1743443394709,3.2078,1823.8,1823.4,4.12662]
[1743443394710,4.30454,1823.8,1823.7,1.09675]
[1743443395408,4.6893,1823.8,1823.4,1.3843]
[1743443395706,1.09693,1823.4,1823.3,0.00822886]
[1743443396111,2.54963,1823.4,1823.3,0.00822886]
[1743443396313,2.54963,1823.4,1823.3,1.10521886]
[1743443397012,1.4527,1823.4,1823.3,1.10521886]
[1743443397811,3.2078,1823.5,1823.4,1.09693]
[1743443398018,1.4527,1823.6,1823.5,1.09687]
[1743443398817,2.54951,1823.6,1823.5,1.09687]
[1743443399015,1.4527,1823.6,1823.5,1.09687]
[1743443400216,7.5048,1823.7,1823.6,1.09681]
[1743443400414,4.297,1823.7,1823.6,1.09681]
[1743443400911,5.7316,1823.7,1823.6,2.48791]
[1743443401113,3.2078,1823.9,1823.8,1.09669]
[1743443401313,3.2078,1823.9,1823.7,1.3911]
[1743443401314,4.6424,1823.9,1823.7,1.3911]
[1743443401513,5.73906,1823.9,1823.8,1.09669]
[1743443401910,5.73906,1823.9,1823.7,1.3911]
[1743443402122,4.6424,1823.9,1823.8,1.09669]
[1743443403018,2.53123,1823.9,1823.8,1.09669]
[1743443403214,2.53123,1823.9,1823.6,1.09681]
[1743443403215,1.09677,1823.7,1823.6,1.09681]
[1743443403416,1.09677,1823.7,1823.3,1.10517886]
[1743443403417,5.94974,1823.7,1823.3,1.10517886]
[1743443403712,1.4222,1823.6,1823.5,1.09687]
[1743443403918,2.51901,1823.6,1823.4,1.09689]
[1743443404117,1.4222,1823.6,1823.5,1.09687]
[1743443404323,2.51901,1823.6,1823.4,2.49119]
[1743443404630,2.51901,1823.6,1823.4,1.3943]
[1743443404818,1.09687,1823.5,1823.3,0.00822886]
[1743443405021,1.4222,1823.4,1823.3,1.10516886]
[1743443405324,1.4222,1823.4,1823.3,0.00822886]
[1743443405325,4.63,1823.4,1823.3,0.00822886]
[1743443405522,5.72693,1823.4,1823.3,0.00822886]
[1743443406323,5.72693,1823.4,1823.3,1.10521886]
[1743443406324,4.63,1823.4,1823.3,1.10521886]
[1743443406726,5.72693,1823.4,1823.3,0.00822886]
[1743443406915,9.99593,1823.4,1823.3,1.10521886]
[1743443407120,9.99593,1823.4,1823.3,0.00822886]
[1743443408117,12.49593,1823.4,1823.3,0.00822886]
[1743443409028,1.09728,1822.9,1822.6,1.503]
[1743443409226,5.6296,1822.8,1822.7,1.09736]
[1743443409525,6.7269,1822.8,1822.7,1.09736]
[1743443409731,1.09736,1822.7,1822.6,1.09737]
[1743443410022,1.09736,1822.7,1822.6,1.09738]
[1743443410023,1.09737,1822.7,1822.6,1.09738]
[1743443410225,8.57529191,1822.8,1822.7,1.09736]
[1743443411024,8.57529191,1822.8,1822.5,1.43572886]
[1743443411025,7.47795191,1822.8,1822.5,0.00822886]
[1743443411226,1.09742,1822.6,1822.5,0.00822886]
[1743443411430,4.30522,1822.6,1822.5,0.00822886]
[1743443414134,6.80522,1822.6,1822.5,8.86e-06]
[1743443414833,2.744,1822.3,1821.6,1.09802]
[1743443415128,2.744,1822.3,1821.1,3.2078]
[1743443415129,1.09802,1821.6,1821.5,0.7456]
[1743443415329,1.09802,1821.6,1821.5,1.09808]
[1743443415330,4.238,1821.6,1821.5,1.09808]
[1743443415527,4.238,1821.6,1821.5,2.49268]
[1743443416136,0.00822886,1821.7,1821.6,1.09802]
[1743443416627,0.00822886,1821.7,1821.5,2.49264]
[1743443416820,1.10622886,1821.7,1821.5,1.3946]
[1743443417136,1.09802,1821.6,1821.5,1.3946]
[1743443417329,4.30582,1821.6,1821.5,1.3946]
[1743443417927,0.00822886,1821.7,1821.5,1.3946]
[1743443418130,1.09802,1821.6,1821.5,1.3946]
[1743443418428,0.00822886,1821.7,1821.5,2.49266]
[1743443418623,0.00822886,1821.7,1821.6,1.09802]
[1743443419535,4.30548,1822.2,1821.9,1.09781]
[1743443419739,3.2078,1822.2,1822.0,1.4391]
[1743443419932,1.09772,1822.1,1822.0,1.4391]
[1743443420927,1.0979,1821.8,1821.7,0.7167]
[1743443421131,4.3057,1821.9,1821.7,0.7167]
[1743443421329,3.2078,1821.9,1821.8,1.4587]
[1743443422836,4.30564,1821.9,1821.8,1.4587]
[1743443423043,3.2078,1821.9,1821.8,1.4587]
[1743443423537,3.2078,1821.9,1821.8,2.5566]
[1743443423940,3.2078,1821.9,1821.8,1.4587]
[1743443424333,4.617,1821.9,1821.8,2.5566]
[1743443424534,4.617,1821.9,1821.8,1.4587]
[1743443424729,5.71484,1821.9,1821.6,1.098]
[1743443424933,5.71488,1821.9,1821.6,2.5514]
[1743443425129,4.617,1821.9,1821.6,1.4534]
[1743443425334,4.617,1821.9,1821.5,1.84065]
[1743443425335,4.30576,1821.7,1821.5,1.84065]
[1743443425537,1.4092,1821.6,1821.5,3.29405]
[1743443425836,1.4092,1821.6,1821.5,2.196]
[1743443426034,1.09808,1821.5,1821.4,0.00822886]
[1743443426229,4.30588,1821.5,1821.4,0.00822886]
[1743443426635,3.2078,1821.5,1821.4,0.00822886]
[1743443426830,4.6769,1821.5,1821.4,1.10636886]
[1743443427035,3.2078,1821.5,1821.4,1.10636886]
[1743443428936,58.5368,1821.8,1821.4,5.96130886]
[1743443429242,59.521,1821.8,1821.7,1.09796]
[1743443429542,8.8699,1822.0,1821.9,1.09784]
[1743443429944,8.8669,1822.0,1821.8,1.09786]
[1743443430146,8.8669,1822.0,1821.9,1.3889]
[1743443430741,9.96468,1822.0,1821.9,1.3889]
[1743443430945,9.96468,1822.0,1821.8,1.09788]
[1743443431137,4.6769,1822.0,1821.9,1.09784]
[1743443431335,8.8609,1822.0,1821.9,1.09784]
[1743443432245,9.9587,1822.0,1821.8,2.48676]
[1743443432947,8.8609,1822.0,1821.9,1.09784]
[1743443433242,9.95873,1822.0,1821.8,1.3889]
[1743443433545,8.8609,1822.0,1821.9,1.09784]
[1743443433845,1.09784,1821.9,1821.8,2.48677]
[1743443434040,1.4659,1821.9,1821.8,2.48677]
[1743443436249,0.00815191,1822.2,1822.1,1.09772]
[1743443437038,0.00815191,1822.2,1822.0,2.9163]
[1743443437039,3.21595191,1822.2,1822.0,0.7436]
[1743443437342,1.09784,1821.9,1821.8,2.56007]
[1743443437944,1.09784,1821.9,1821.6,1.09797]
[1743443437945,1.09797,1821.7,1821.6,1.09797]
[1743443438138,4.30577,1821.7,1821.6,1.09797]
[1743443438638,4.6622,1821.7,1821.6,1.09797]
[1743443440249,3.2078,1821.7,1821.6,1.09797]
[1743443440946,4.156,1821.8,1821.7,1.09796]
[1743443441447,7.3638,1821.8,1821.6,1.3629]
[1743443441644,2.46206,1821.7,1821.6,1.3629]
[1743443441836,2.46206,1821.7,1821.4,3.21602886]
[1743443441837,2.46209,1821.7,1821.5,1.09806]
[1743443442038,2.46209,1821.7,1821.5,2.46936]
[1743443442240,1.3641,1821.7,1821.6,1.09802]
[1743443444148,7.3428,1821.8,1821.7,1.09796]
[1743443444353,1.4763,1822.0,1821.9,1.09784]
[1743443444649,0.00815191,1822.2,1822.1,1.09772]
[1743443444851,1.46375191,1822.2,1822.1,1.09772]
[1743443445242,0.00815191,1822.2,1822.1,1.09772]
[1743443446239,0.00815191,1822.2,1822.1,4.30552]
[1743443447751,1.10585191,1822.2,1822.0,3.89917]
[1743443447945,1.4138,1822.1,1822.0,1.09777]
[1743443448352,1.4138,1822.1,1822.0,2.49677]
[1743443449456,1.4138,1822.1,1822.0,1.09777]
[1743443449854,1.4138,1822.1,1822.0,2.49677]
[1743443451254,4.13315191,1822.2,1822.1,1.09772]
[1743443451647,5.23086191,1822.2,1822.0,1.09776]
[1743443451859,5.23086191,1822.2,1821.9,3.2078]
[1743443452058,4.13315191,1822.2,1822.0,1.09776]
[1743443452345,5.23084191,1822.2,1822.0,1.09776]
[1743443452554,1.369,1822.1,1822.0,1.09776]
[1743443452948,1.369,1822.1,1821.8,1.09786]
[1743443453144,1.09784,1821.9,1821.8,1.09786]
[1743443453552,1.09783,1822.0,1821.7,2.9133]
[1743443453753,1.369,1821.8,1821.7,4.01126]
[1743443454457,7.34095191,1822.2,1822.1,1.09772]
[1743443454650,8.78885191,1822.2,1822.1,1.09772]
[1743443455348,9.88651191,1822.2,1822.1,1.09772]
[1743443455852,8.78885191,1822.2,1822.1,1.09772]
[1743443456044,9.88651191,1822.2,1822.1,1.09772]
[1743443456955,8.78885191,1822.2,1822.1,1.09772]
[1743443458242,9.88651191,1822.2,1822.1,1.09772]
[1743443458447,8.78885191,1822.2,1822.1,1.09772]
[1743443458654,9.88651191,1822.2,1822.1,1.09772]
[1743443460355,1.91e-06,1822.2,1822.1,1.09772]
[1743443460554,1.91e-06,1822.2,1822.1,4.29702]
[1743443460758,1.91e-06,1822.2,1822.1,4.81197987]
[1743443460947,1.91e-06,1822.2,1822.1,8.89097987]
[1743443462345,4.6467,1823.0,1822.9,1.09724]
[1743443462949,55.332,1823.1,1823.0,1.09718]
[1743443463150,1.5058,1823.3,1823.2,1.09706]
[1743443463853,23.23522477,1823.5,1823.4,1.09693]
[1743443464553,2.60262,1823.6,1823.5,1.09687]
[1743443464554,1.5058,1823.6,1823.5,1.09687]
[1743443464757,2.60264,1823.6,1823.4,1.09689]
[1743443464960,1.5058,1823.6,1823.4,2.49809]
[1743443465158,1.5058,1823.6,1823.5,1.09687]
[1743443465354,1.5058,1823.6,1823.5,2.49807]
[1743443465548,55.333,1823.8,1823.5,1.4012]
[1743443465754,1.5058,1823.9,1823.8,1.09669]
[1743443466761,1.5058,1823.9,1823.5,1.4012]
[1743443466947,3.2078,1823.7,1823.6,1.09676]
[1743443467152,4.7136,1823.9,1823.8,1.09669]
[1743443467353,4.7136,1823.9,1823.7,1.09671]
[1743443467554,4.7136,1823.9,1823.5,4.14337]
[1743443467754,4.7136,1823.9,1823.8,1.09669]
[1743443468062,5.81029,1823.9,1823.6,1.09681]
[1743443468257,5.81029,1823.9,1823.7,1.09675]
[1743443468461,4.7136,1823.9,1823.5,1.4012]
[1743443468663,4.7136,1823.9,1823.7,1.09671]
[1743443469161,4.7136,1823.9,1823.8,1.09669]
[1743443469954,4.7136,1823.9,1823.7,2.5072]
[1743443470162,4.7136,1823.9,1823.8,1.09669]
[1743443471056,1.5058,1823.9,1823.8,1.09669]
[1743443471361,3.2078,1824.3,1824.2,1.09645]
[1743443471564,4.605,1824.3,1824.2,1.09645]
[1743443471760,23.23522477,1825.1,1824.4,2.74084]
[1743443472059,1.3972,1824.8,1824.5,4.6183]
[1743443472362,1.3972,1824.8,1824.7,4.30395]
[1743443472556,1.3972,1824.8,1824.5,4.15116]
[1743443472557,1.3972,1824.8,1824.6,1.09619]
[1743443472763,1.3972,1824.8,1824.5,4.6183]
[1743443473160,1.3972,1824.8,1824.6,1.09618]
[1743443473361,2.4933,1824.8,1824.5,5.71453]
[1743443473555,1.3972,1824.8,1824.5,4.6183]
[1743443473761,1.3972,1824.8,1824.7,4.30395]
[1743443474559,4.182,1825.1,1824.9,1.09598]
[1743443474755,1.4079,1825.0,1824.9,1.09598]
[1743443475468,1.09566,1825.6,1824.9,3.2078]
[1743443475766,5.5478,1825.5,1825.3,1.09578]
[1743443475963,5.5478,1825.5,1825.2,3.2078]
[1743443476267,6.6435,1825.5,1825.2,4.30364]
[1743443476457,6.64351,1825.5,1825.2,4.30364]
[1743443476663,5.5478,1825.5,1825.3,1.09577]
[1743443476863,5.5478,1825.5,1825.4,1.09573]
[1743443477064,1.3668,1825.5,1825.4,1.09573]
[1743443479870,3.2078,1826.0,1825.9,1.09543]
[1743443480458,4.30322,1826.0,1825.8,1.09549]
[1743443480663,4.30319,1826.0,1825.8,1.09546]
[1743443480874,4.30319,1826.0,1825.7,3.2078]
[1743443481168,3.2078,1826.0,1825.9,1.09543]
[1743443481365,5.25131,1826.1,1826.0,1.09537]
[1743443481563,5.25131,1826.1,1825.9,1.09539]
[1743443481564,4.156,1826.1,1825.9,1.09539]
[1743443481766,4.156,1826.1,1825.7,1.09552]
[1743443481958,1.09557,1825.7,1825.6,1.09559]
[1743443482163,5.25457,1825.7,1825.6,1.09559]
[1743443482362,4.159,1825.7,1825.4,3.2078]
[1743443482569,1.4846,1825.6,1825.5,1.09562]
[1743443482758,2.58021,1825.6,1825.4,3.2078]
[1743443482966,2.58021,1825.6,1825.5,1.09567]
[1743443483171,1.4846,1825.6,1825.5,1.09567]
[1743443484059,4.159,1825.7,1825.5,1.09567]
[1743443484266,2.73832,1826.1,1825.6,7.38114]
[1743443484267,1.09533,1826.1,1825.6,7.38114]
[1743443484571,1.09533,1826.1,1826.0,1.09532]
[1743443484572,1.09531,1826.1,1826.0,1.09532]
[1743443485167,1.09536,1826.1,1826.0,1.09537]
[1743443485365,1.4425,1826.1,1826.0,1.09537]
[1743443487368,1.4425,1826.1,1826.0,4.30317]
[1743443488969,0.43439632,1826.9,1826.0,3.2078]
[1743443489175,1.3967,1826.5,1826.4,4.30293]
[1743443489572,2.49177,1826.5,1826.4,3.2078]
[1743443490073,6.62377,1826.5,1826.4,3.2078]
[1743443490278,1.3967,1826.5,1826.4,4.30293]
[1743443490574,2.49177,1826.5,1826.4,4.30293]
[1743443490773,1.3967,1826.5,1826.4,4.30293]
[1743443492178,2.49177,1826.5,1826.4,3.2078]
[1743443493178,1.3967,1826.5,1826.4,4.30293]
[1743443493479,1.3967,1826.5,1826.4,1.09513]
[1743443493971,1.3967,1826.5,1826.3,1.09515]
[1743443494176,2.4918,1826.5,1826.2,4.62232886]
[1743443494376,1.09515,1826.4,1826.2,4.31126886]
[1743443494574,1.4167,1826.3,1826.2,4.31126886]
[1743443494769,1.4167,1826.3,1826.2,3.21602886]
[1743443495170,6.61489,1826.3,1826.2,3.21602886]
[1743443495381,6.61489,1826.3,1826.2,4.31127886]
[1743443495678,6.61489,1826.3,1826.2,0.00822886]
[1743443496075,6.61489,1826.3,1826.2,1.10347886]
[1743443496873,6.61489,1826.3,1826.2,0.00822886]
[1743443498685,8.0197,1826.3,1825.6,3.9037]
[1743443498983,1.09553,1825.8,1825.7,1.09554]
[1743443499184,1.09555,1825.7,1825.6,2.50897]
[1743443499373,1.09554,1825.8,1825.7,1.09555]
[1743443499679,2.47709,1825.8,1825.7,1.09555]
[1743443500180,4.09522885,1825.9,1825.8,1.09549]
[1743443500382,4.09522885,1825.9,1825.8,2.54659]
[1743443500882,5.19065885,1825.9,1825.8,2.54659]
[1743443501085,4.09522885,1825.9,1825.8,2.54659]
[1743443501883,0.00822885,1825.9,1825.8,2.54659]
[1743443502479,0.00822885,1825.9,1825.8,3.28239]
[1743443505981,1.10365885,1825.9,1825.8,2.1869]
[1743443506176,1.10365885,1825.9,1825.8,1.4511]
[1743443506585,1.09549,1825.8,1825.7,3.2078]
[1743443506790,1.09549,1825.8,1825.7,4.6613]
[1743443506791,2.54159,1825.8,1825.7,4.6613]
[1743443506983,1.4461,1825.8,1825.7,5.75685]
[1743443507185,5.15565885,1825.9,1825.8,1.09549]
[1743443507386,1.09549,1825.8,1825.7,5.75682]
[1743443507584,1.09549,1825.8,1825.7,4.6613]
[1743443507781,1.4461,1825.8,1825.7,5.75685]
[1743443508385,4.06022885,1825.9,1825.7,4.6613]
[1743443508692,4.06022885,1825.9,1825.8,1.09549]
[1743443508892,5.46132885,1825.9,1825.8,1.09549]
[1743443509494,1.09555,1825.7,1825.6,0.00822886]
[1743443509789,2.50554,1825.8,1825.6,1.10382886]
[1743443509991,1.4011,1825.7,1825.6,1.10382886]
[1743443510394,2.49665,1825.7,1825.6,1.10382886]
[1743443511096,1.4011,1825.7,1825.6,1.10382886]
[1743443511693,2.49665,1825.7,1825.6,1.10382886]
[1743443513192,0.00822885,1825.9,1825.8,1.09549]
[1743443513386,8.85e-06,1825.9,1825.8,1.09549]
[1743443513889,8.85e-06,1825.9,1825.8,2.32145452]
[1743443518394,8.85e-06,1825.9,1825.8,4.82140036]
[1743443519295,8.85e-06,1825.9,1825.8,2.32140036]
[1743443519888,8.85e-06,1825.9,1825.8,1.80809]
[1743443520699,8.85e-06,1825.9,1825.8,2.32156567]
[1743443521389,8.85e-06,1825.9,1825.8,2.32160847]
[1743443522794,1.47,1826.6,1826.5,1.09507]
[1743443523394,1.47,1826.6,1826.5,2.46037]
[1743443525604,1.47,1826.6,1826.5,1.09507]
[1743443525808,1.47,1826.6,1826.5,2.55557]
[1743443526301,1.47,1826.6,1826.5,1.09507]
[1743443527101,4.01,1826.7,1826.4,7.40605]
[1743443527296,1.4728,1826.6,1826.5,1.09507]
[1743443527493,1.4728,1826.6,1826.5,2.56337]
[1743443528302,1.4728,1826.6,1826.5,1.09507]
[1743443528991,1.4728,1826.6,1826.5,2.56337]